{"text_format":"1","workbook":"xlsx","n_sheets":13,"sheets":["1. Forside","2. Samlet prisloft","3. Driftsomkostninger","4. Historiske investeringer","5. Gennemførte investeringer","6. Korrektion investeringer","7. Planlagte investeringer","8. 1-1 omkostninger","9. Miljø- og servicemål","10. Klimatilpasning","11. Nettofinansielle poster","12. Over- eller underdækning","13. Kontrol med indtægtsrammen"],"not_rendered":{"charts":0,"images":0,"macros":1,"external_links":0,"defined_names":0,"comments":0,"pivot_tables":0},"unopened":[],"bounds":{"document_bytes":16777216,"sheet_cells":100000,"rows_first":2000,"rows_last":500,"rows_between":2000,"halvings":0,"cell_chars":16384,"cell_head_chars":4096},"cells_cut":0,"cells_raw":0,"read":"whole","date_system":"1900"}

{"sheet":"1. Forside","index":0,"n_rows":27,"n_cols":4,"rows_kept":27,"cut":false,"hidden":false,"merged":[[26,3,26,5],[25,3,25,5],[24,3,24,5],[23,3,23,5],[22,3,22,5],[21,3,21,5],[20,3,20,5],[19,3,19,5],[18,3,18,5],[7,3,7,5],[12,3,12,5],[15,3,15,5],[16,3,16,5],[17,3,17,5]]}
["Esbjerg Spildevand A/S"]
[]
[]
[]
[]
[]
[]
[null,null,null,"Bilag A"]
[]
[]
[]
[]
[null,null,null,"Indholdsfortegnelse"]
[]
[]
[null,null,"Fane nr. 2","Samlet prisloft "]
[null,null,"Fane nr. 3","Driftsomkostninger"]
[null,null,"Fane nr. 4","Historiske investeringer "]
[null,null,"Fane nr. 5","Gennemførte investeringer"]
[null,null,"Fane nr. 6","Korrektion investeringer"]
[null,null,"Fane nr. 7","Planlagte investeringer"]
[null,null,"Fane nr. 8","1:1 omkostninger"]
[null,null,"Fane nr. 9","Miljø- og servicemål"]
[null,null,"Fane nr. 10","Klimatilpasning"]
[null,null,"Fane nr. 11","Nettofinansielle poster"]
[null,null,"Fane nr. 12","Over- eller underdækning"]
[null,null,"Fane nr. 13","Kontrol med indtægtsrammen og oversigt over ekstraordinære effektiviseringsgevinster"]

{"sheet":"2. Samlet prisloft","index":1,"n_rows":38,"n_cols":6,"rows_kept":38,"cut":false,"hidden":false,"merged":[[3,1,3,5]]}
[{"$f":"'1. Forside'!A1","v":"Esbjerg Spildevand A/S"}]
[]
[]
[null,"Fane 2. Samlet prisloft for 2015"]
[]
[null,"Driftsomkostninger"]
[null,"Driftsomkostninger i prisloftet for 2014",{"$f":"'3. Driftsomkostninger'!C20","v":72010303.239310607},"kr."]
[null,"Bortfald af væsentlige omkostninger",{"$f":"-'3. Driftsomkostninger'!C16","v":0},"kr."]
[null,"Korrektion for prisudviklingen 2014-2015",{"$f":"'3. Driftsomkostninger'!C22","v":57608.242591448492},"kr."]
[null,"Forhøjelse til effektivt niveau iht. benchmarkingen",{"$f":"'3. Driftsomkostninger'!C28","v":0},"kr."]
[null,"Korrektion for generelt effektiviseringskrav",{"$f":"-'3. Driftsomkostninger'!C34","v":-316845.33425296668},"kr."]
[null,"Korrektion for individuelt effektiviseringskrav",{"$f":"-'3. Driftsomkostninger'!C43","v":-3080240.7210615114},"kr."]
[null,"Driftsomkostninger i alt",{"$f":"SUM(C7:C12)","v":68670825.426587582},"kr.",{"$f":"C13","v":68670825.426587582}," kr."]
[null,"Investeringer"]
[null,"Tillæg for historiske investeringer",{"$f":"'4. Historiske investeringer'!C9","v":76292156.599607199},"kr."]
[null,"Tillæg for gennemførte investeringer i 2010-2013",{"$f":"'5. Gennemførte investeringer'!F35","v":6220787.8158625457},"kr."]
[null,"Korrektion af tillæg for planlagte investeringer vedrørende 2013  ",{"$f":"'6. Korrektion investeringer'!C10","v":-661524.18666666653},"kr."]
[null,"Tillæg for planlagte investeringer i 2014 og 2015",{"$f":"'7. Planlagte investeringer'!F41","v":3500935.146666666},"kr."]
[null,"Investeringstillæg i alt",{"$f":"SUM(C15:C18)","v":85352355.375469744},"kr.",{"$f":"C19","v":85352355.375469744}," kr."]
[null,"Øvrige omkostninger mv."]
[null,"Tillæg for 1:1 omkostninger i 2015",{"$f":"'8. 1-1 omkostninger'!C10","v":9733000},"kr."]
[null,"Tillæg vedr. revisorerklæringer og DANVA/FVD-kontingent",{"$f":"'8. 1-1 omkostninger'!C18","v":210000},"kr."]
[null,"Korrektion ift. faktiske 1:1 omkostninger i 2013",{"$f":"'8. 1-1 omkostninger'!C24","v":-2144016},"kr."]
[null,"Tillæg for driftsomkostninger til miljø- og servicemål i 2015",{"$f":"'9. Miljø- og servicemål'!C8","v":0},"kr."]
[null,"Korrektion ift. faktiske driftsomkostninger til miljø- og servicemål i 2013",{"$f":"'9. Miljø- og servicemål'!C15","v":0},"kr."]
[null,"Tillæg for driftsomkostninger til medfinansiering af klimatilpasningsprojekter i 2015",{"$f":"'10. Klimatilpasning'!C9","v":0},"kr."]
[null,"Korrektion ift. faktiske omkostninger til medfinansiering af klimatilpasningsprojekter i 2013",{"$f":"'10. Klimatilpasning'!C16","v":0},"kr."]
[null,"Tillæg/fradrag for nettofinansielle poster i 2015",{"$f":"'11. Nettofinansielle poster'!C9","v":8194706},"kr."]
[null,"Korrektion ift. faktiske nettofinansielle poster i 2013",{"$f":"'11. Nettofinansielle poster'!C16","v":-605294},"kr."]
[null,"Øvrige omkostninger mv. i alt",{"$f":"SUM(C21:C29)","v":15388396},"kr.",{"$f":"C30","v":15388396}," kr."]
[null,"Historisk over- eller underdækning"]
[null,"Tillæg/fradrag for over- eller underdækning til og med 2010",{"$f":"'12. Over- eller underdækning'!C11","v":0},"kr.",{"$f":"C32","v":0}," kr."]
[null,"Korrektion i forhold til tidligere indtægtsramme "]
[null,"Korrektion for overholdelse af indtægtsramme i prisloft 2013",{"$f":"'13. Kontrol med indtægtsrammen'!E27","v":5628987.8505736589},"kr.",{"$f":"C34","v":5628987.8505736589}," kr."]
[null,"Samlet prisloft"]
[null,"Indtægtsramme i 2015 ",null,null,{"$f":"SUM(E13:E34)","v":175040564.65263098}," kr."]
[null,"Debiteret vandmængde i 2013",null,null,6211979," m3"]
[null,"Prisloft 2015",null,null,{"$f":"E36/E37","v":28.1779066948924}," kr./m3"]

{"sheet":"3. Driftsomkostninger","index":2,"n_rows":43,"n_cols":4,"rows_kept":43,"cut":false,"hidden":false,"merged":[[3,1,3,3]]}
[{"$f":"'1. Forside'!A1","v":"Esbjerg Spildevand A/S"}]
[]
[]
[null,"Fane 3. Driftsomkostninger "]
[]
[null,"Driftsomkostningerne i prisloftet for 2014"]
[null,"Korrigerede driftsomkostninger i prisloftet for 2013 (DOiPL 2013)",70946111.565823257,"kr."]
[null,"Prisfremskrivning 1,5 pct.",{"$f":"0.015*SUM(C7:C7)","v":1064191.6734873487},"kr."]
[null,"Generelt effektiviseringskrav (0 pct.)",0,"kr."]
[null,"Individuelt effektiviseringskrav ",0,"kr."]
[null,"Driftsomkostningerne i prisloftet for 2014 (DOiPL 2014)",{"$f":"SUM(C7:C10)","v":72010303.239310607},"kr."]
[]
[]
[null,"Korrektion for forventet bortfald af væsentlige omkostninger"]
[null,"Selskabets indberettede bortfald af væsentlige omkostninger inden 2015",0,"kr."]
[null,"Korrektion for forventet bortfald ",{"$f":"SUM(C15:C15)","v":0},"kr."]
[]
[]
[null,"Korrektion for prisudviklingen fra 2014-2015"]
[null,"Driftsomkostningerne i prisloftet for 2014",{"$f":"C11-C16","v":72010303.239310607},"kr."]
[null,"Prisudvikling 2014 - 2015 ",0.08,"pct."]
[null,"Korrektion for prisudvikling",{"$f":"C20*(C21/100)","v":57608.242591448492},"kr."]
[]
[]
[null,"Eventuel forhøjelse til effektivt niveau iht. benchmarkingen"]
[null,"Selskabets effektive driftsomkostninger iht. benchmarkingen",50436016.388813153,"kr."]
[null,"Selskabets pristalskorrigerede driftsomkostninger i 2015-niveau",{"$f":"C20+C22","v":72067911.481902063},"kr."]
[null,"Eventuel forhøjelse til effektivt niveau",{"$f":"IF(C27>C26,0,C26-C27)","v":0},"kr."]
[]
[]
[null,"Korrektion for generelt effektiviseringskrav"]
[null,"Driftsomkostningerne i prisloftet for 2014",{"$f":"C20","v":72010303.239310607},"kr. "]
[null,"Generelt effektiviseringskrav ",0.44,"pct."]
[null,"Endeligt generelt effektiviseringskrav",{"$f":"C32*(C33/100)","v":316845.33425296668},"kr. "]
[]
[]
[null,"Korrektion for individuelt effektiviseringskrav"]
[null,"Rå effektiviseringspotentiale",21883931.154426493,"kr."]
[null,"Effektiviseringspotentiale efter eventuel korrektion for særlige forhold",21574286.850497458,"kr."]
[null,"Effektiviseringspotentiale efter forsigtighedshensyn",12320962.884246046,"kr."]
[null,"Effektiviseringspotentiale efter eventuel korrektion for sammensætning af signifikante costdrivere",12320962.884246046,"kr. "]
[null,"Umiddelbart effektiviseringskrav",{"$f":"C41/4","v":3080240.7210615114},"kr."]
[null,"Endeligt individuelt effektiviseringskrav",{"$f":"IF(C42>0.05*C20,0.05*C20,IF(C42<0.01*C20,0,C42))","v":3080240.7210615114},"kr. "]

{"sheet":"4. Historiske investeringer","index":3,"n_rows":9,"n_cols":4,"rows_kept":9,"cut":false,"hidden":false,"merged":[[3,1,3,2]]}
[{"$f":"'3. Driftsomkostninger'!A1","v":"Esbjerg Spildevand A/S"}]
[]
[]
[null,"Fane 4. Historiske investeringer "]
[]
[null,"Tillæg for historiske investeringer "]
[null,"Værdi af selskabets materielle anlægsaktiver pr. 1. januar 2010",3036071244.6243625,"kr."]
[null,"Den årlige standardafskrivning på de materielle anlægsaktiver iht. POLKA",76292156.599607199,"kr."]
[null,"Tillæg i alt i 2015",{"$f":"C8","v":76292156.599607199},"kr."]

{"sheet":"5. Gennemførte investeringer","index":4,"n_rows":35,"n_cols":7,"rows_kept":35,"cut":false,"hidden":false,"merged":[[3,1,3,5],[6,5,6,6]]}
[{"$f":"'4. Historiske investeringer'!A1","v":"Esbjerg Spildevand A/S"}]
[]
[]
[null,"Fane 5. Gennemførte investeringer i 2010 - 2013 "]
[]
[null,"Tillæg for gennemførte investeringer i 2013"]
[null," Beskrivelse af investeringen   ","Årstal ","Std. levetid (år)   "," Anskaffelses-pris (kr.)","Afskrivning "]
[null,"Efterklaringstanke, Mek/El",2013,20,284396,{"$f":"E8/D8","v":14219.8},"kr."]
[null,"Efterklaringstanke, SRO",2013,10,189597,{"$f":"E9/D9","v":18959.7},"kr."]
[null,"Forsinkelsesbassiner, lukkede uden automatisk rensning og SRO Miljøklasse B (mindre end 1.000 m3)",2013,50,136391,2727.82,"kr."]
[null,"Arbejdsplads",2013,5,53600,10720,"kr."]
[null,"Beluftningstanke, Mek/EL",2013,20,215993,10799.65,"kr."]
[null,"Efterklaringstanke, Konstruktioner",2013,60,473993,7899.8833333333332,"kr."]
[null,"Indløb-/udløbsarrangement",2013,75,107305,1430.7333333333333,"kr."]
[null,"Jordbassin Klasse A",2013,50,1432298,28645.96,"kr."]
[null,"Køretøjer, personbil",2013,5,450912,90182.399999999994,"kr."]
[null,"Køretøjer, små lastvogne (< 3.500 kg.)",2013,5,501014,100202.8,"kr."]
[null,"Ledningsnet = Ø 200 mm",2013,75,10027404,133698.72,"kr."]
[null,"Pumpestationer i brønde (< 6,25 m2), Mek/EL",2013,20,258144,12907.2,"kr."]
[null,"Pumpestationer i brønde (< 6,25 m2), SRO",2013,10,64536,6453.6,"kr."]
[null,"Rådnetanke, slam, Konstruktioner",2013,60,940425,15673.75,"kr."]
[null,"Rådnetanke, slam, Mek/EL",2013,20,117553,5877.65,"kr."]
[null,"Rådnetanke, slam, SRO",2013,10,117553,11755.3,"kr."]
[null,"Slutafvanding, slam - lavteknologisk (slambede), Mek/EL",2013,20,1929754,96487.7,"kr."]
[null,"Stik",2013,75,620371,8271.6133333333328,"kr."]
[null,"Strømpeforing = Ø 200 mm",2013,50,79476,1589.52,"kr."]
[null,"Strømpeforing Ø 200 mm < Ledningsnet = Ø 500 mm",2013,50,5563164,111263.28,"kr."]
[null,"Ø 1000 mm < Ledningsnet = Ø 1200 mm",2013,75,6679936,89065.813333333339,"kr."]
[null,"Ø 1200 mm < Ledningsnet = Ø 1600 mm",2013,75,508657,6782.0933333333332,"kr."]
[null,"Ø 200 mm < Ledningsnet = Ø 500 mm",2013,75,25161045,335480.59999999998,"kr."]
[null,"Ø 500 mm < Ledningsnet = Ø 800 mm",2013,75,11140655,148542.06666666668,"kr."]
[null,"Ø 800 mm < Ledningsnet = Ø 1000 mm",2013,75,7457344,99431.253333333327,"kr."]
[null,"Tillæg for 2013 ",null,null,null,{"$f":"SUM(F8:F32)","v":1369068.9066666667},"kr."]
[null,"Tillæg for 2010 - 2012",null,null,null,4851718.9091958795,"kr."]
[null,"Samlet tillæg for gennemførte investeringer",null,null,null,{"$f":"F33+F34","v":6220787.8158625457},"kr."]

{"sheet":"6. Korrektion investeringer","index":5,"n_rows":10,"n_cols":4,"rows_kept":10,"cut":false,"hidden":false,"merged":[[3,1,3,3]]}
[{"$f":"'5. Gennemførte investeringer'!A1","v":"Esbjerg Spildevand A/S"}]
[]
[]
[null,"Fane 6. Korrektion af tillæg for planlagte investeringer"]
[]
[null,"Korrektion af tillæg for planlagte investeringer vedr. 2013"]
[null,"Tillæg for planlagte investeringer i 2013 i prisloft 2013",1598128,"kr."]
[null,"Tillæg for planlagte investeringer i 2013 i prisloft 2014",1801534,"kr."]
[null,"Selskabets faktiske afskrivninger på gennemførte investeringer i 2013",{"$f":"'5. Gennemførte investeringer'!F33","v":1369068.9066666667},"kr."]
[null,"Korrektion af tillæg for planlagte investeringer vedr. 2013",{"$f":"C9-C7+C9-C8","v":-661524.18666666653},"kr."]

{"sheet":"7. Planlagte investeringer","index":6,"n_rows":41,"n_cols":7,"rows_kept":41,"cut":false,"hidden":false,"merged":[[6,5,6,6],[3,1,3,6]]}
[{"$f":"'6. Korrektion investeringer'!A1","v":"Esbjerg Spildevand A/S"}]
[]
[]
[null,"Fane 7. Planlagte investeringer "]
[]
[null,"Tillæg for planlagte investeringer i 2014 og 2015"]
[null,"Beskrivelse af investeringen   ","Årstal ","Std. levetid (år)   ","Anskaffelses-pris (kr.)   ","Afskrivning"]
[null,"Efterbehandlingsanlæg (sandfilter), Konstruktioner",2014,60,607451,{"$f":"E8/D8","v":10124.183333333332},"kr."]
[null,"Indløb med riste, Mek/EL",2014,20,2821890,{"$f":"E9/D9","v":141094.5},"kr."]
[null,"Jordbassin Klasse A",2014,50,131155,{"$f":"E10/D10","v":2623.1},"kr."]
[null,"Jordbassin Klasse B",2014,50,775800,15516,"kr."]
[null,"Ledningsnet = Ø 200 mm",2014,75,2899428,38659.040000000001,"kr."]
[null,"Stik",2014,75,3385306,45137.41333333333,"kr."]
[null,"Strømpeforing = Ø 200 mm",2014,50,288403,5768.06,"kr."]
[null,"Ø 200 mm < Ledningsnet = Ø 500 mm",2014,75,2557580,34101.066666666666,"kr."]
[null,"Ø 500 mm < Ledningsnet = Ø 800 mm",2014,75,61278840,817051.2,"kr."]
[null,"Pumpestationer i brønde (< 6,25 m2), Konstruktioner",2014,50,1384283,27685.66,"kr."]
[null,"Pumpestationer i brønde (< 6,25 m2), Mek/EL",2014,20,1384283,69214.149999999994,"kr."]
[null,"Pumpestationer i brønde (< 6,25 m2), SRO",2014,10,1384283,138428.29999999999,"kr."]
[null,"Slutafvanding, slam - højteknologisk (centrifuger), Mek/El",2014,20,5446757,272337.84999999998,"kr."]
[null,"Rådnetanke, slam, Mek/EL",2014,20,205881,10294.049999999999,"kr."]
[null,"Beluftningstanke, Mek/EL",2014,20,448660,22433,"kr."]
[null,"Efterbehandlingsanlæg (sandfilter), Konstruktioner",2015,60,607451,10124.183333333332,"kr."]
[null,"Indløb med riste, Mek/EL",2015,20,2821890,141094.5,"kr."]
[null,"Jordbassin Klasse A",2015,50,131155,2623.1,"kr."]
[null,"Jordbassin Klasse B",2015,50,775800,15516,"kr."]
[null,"Ledningsnet = Ø 200 mm",2015,75,2899428,38659.040000000001,"kr."]
[null,"Stik",2015,75,3385306,45137.41333333333,"kr."]
[null,"Strømpeforing = Ø 200 mm",2015,50,288403,5768.06,"kr."]
[null,"Ø 200 mm < Ledningsnet = Ø 500 mm",2015,75,2557580,34101.066666666666,"kr."]
[null,"Ø 500 mm < Ledningsnet = Ø 800 mm",2015,75,61278840,817051.2,"kr."]
[null,"Pumpestationer i brønde (< 6,25 m2), Konstruktioner",2015,50,1384283,27685.66,"kr."]
[null,"Pumpestationer i brønde (< 6,25 m2), Mek/EL",2015,20,1384283,69214.149999999994,"kr."]
[null,"Pumpestationer i brønde (< 6,25 m2), SRO",2015,10,1384283,138428.29999999999,"kr."]
[null,"Slutafvanding, slam - højteknologisk (centrifuger), Mek/El",2015,20,5446757,272337.84999999998,"kr."]
[null,"Rådnetanke, slam, Mek/EL",2015,20,205881,10294.049999999999,"kr."]
[null,"Beluftningstanke, Mek/EL",2015,20,448660,22433,"kr."]
[null,"Oversvømmelseskort",2015,5,1000000,200000,"kr."]
[null,"Tillæg for 2014",null,null,null,{"$f":"SUMIF(C8:C38,\"2014\",F8:F38)","v":1650467.573333333},"kr."]
[null,"Tillæg for 2015",null,null,null,{"$f":"SUMIF(C8:C38,\"2015\",F8:F38)","v":1850467.573333333},"kr."]
[null,"Tillæg i alt",null,null,null,{"$f":"F39+F40","v":3500935.146666666},"kr."]

{"sheet":"8. 1-1 omkostninger","index":7,"n_rows":24,"n_cols":4,"rows_kept":24,"cut":false,"hidden":false,"merged":[[3,1,3,3],[14,1,14,3],[20,1,20,3]]}
[{"$f":"'7. Planlagte investeringer'!A1","v":"Esbjerg Spildevand A/S"}]
[]
[]
[null,"Fane 8. 1:1 omkostninger"]
[]
[null,"Tillæg for budgetterede 1:1 omkostninger i 2015"]
[null,"Betaling til Forsyningssekretariatet",33000,"kr."]
[null,"Betaling af selskabsskatter ",6700000,"kr. "]
[null,"Spildevandsafgift",3000000,"kr."]
[null,"Tillæg i alt ",{"$f":"SUM(C7:C9)","v":9733000},"kr."]
[]
[]
[]
[]
[null,"Tillæg for budgetterede nødvendige udgifter til revisorerklæringer samt ordinært medlemskab af DANVA og FVD i 2015"]
[null,"Betaling for ordinært medlemskab af DANVA/FVD",200000,"kr."]
[null,"Betaling for revisorerklæringer",10000,"kr."]
[null,"Tillæg i alt ",{"$f":"SUM(C16:C17)","v":210000},"kr."]
[]
[]
[null,"Korrektion af tillæg for faktiske 1:1 omkostninger (inkl. revisorerklæringer og ordinært medlemskab af DANVA/FVD) i 2013"]
[null,"Selskabets faktiske 1:1 omkostninger mv. i 2013, jf. reguleringsregnskabet",2563984,"kr."]
[null,"Tillæg for budgetterede 1:1 omkostninger mv. i prisloft 2013",4708000,"kr."]
[null,"Korrektion af tillæg for budgetterede 1:1 omkostninger mv. i 2013",{"$f":"C22-C23","v":-2144016},"kr."]

{"sheet":"9. Miljø- og servicemål","index":8,"n_rows":15,"n_cols":4,"rows_kept":15,"cut":false,"hidden":false,"merged":[[3,1,3,3]]}
[{"$f":"'8. 1-1 omkostninger'!A1","v":"Esbjerg Spildevand A/S"}]
[]
[]
[null,"Fane 9. Driftsomkostninger til miljø- og servicemål "]
[]
[null,"Tillæg for budgetterede driftsomkostninger til miljø- og servicemål i 2015"]
[null,null,0,"kr."]
[null,"Tillæg i alt",{"$f":"SUM(C7:C7)","v":0},"kr."]
[]
[]
[]
[null,"Korrektion af tillæg for faktiske driftsomkostninger til miljø- og servicemål i 2013"]
[null,"Selskabets faktiske driftsomkostninger til miljø- og servicemål i 2013, jf. reguleringsregnskabet",0,"kr."]
[null,"Tillæg for budgetterede driftsomkostninger til miljø- og servicemål i prisloft 2013",0,"kr."]
[null,"Korrektion af tillæg for budgetterede driftsomkostninger til miljø- og servicemål i 2013",{"$f":"C13-C14","v":0},"kr."]

{"sheet":"10. Klimatilpasning","index":9,"n_rows":16,"n_cols":4,"rows_kept":16,"cut":false,"hidden":false,"merged":[[3,1,3,3],[12,1,12,3],[6,1,6,3]]}
[{"$f":"'9. Miljø- og servicemål'!A1","v":"Esbjerg Spildevand A/S"}]
[]
[]
[null,"Fane 10. Medfinansiering af klimatilpasningsprojekter"]
[]
[]
[null,"Tillæg for budgetterede omkostninger til medfinansiering af klimatilpasningsprojekter i 2015"]
[null,null,0,"kr."]
[null,"Tillæg i alt",{"$f":" SUM(C8:C8)","v":0},"kr."]
[]
[]
[]
[null,"Korrektion af tillæg for faktiske omkostninger til medfinansiering af klimatilpasningsprojekter i 2013"]
[null,"Selskabets faktiske driftsomkostninger til klimatilpasningsprojekter i 2013, jf. reguleringsregnskabet",0,"kr."]
[null,"Tillæg for budgetterede driftsomkostninger til klimatilpasningsprojekter i prisloft 2013",0,"kr."]
[null,"Korrektion af tillæg for budgetterede omkostninger til klimatilpasningsprojekter i 2013",{"$f":"C14-C15","v":0},"kr."]

{"sheet":"11. Nettofinansielle poster","index":10,"n_rows":16,"n_cols":4,"rows_kept":16,"cut":false,"hidden":false,"merged":[[3,1,3,3]]}
[{"$f":"'10. Klimatilpasning'!A1","v":"Esbjerg Spildevand A/S"}]
[]
[]
[null,"Fane 11. Nettofinansielle poster"]
[]
[null,"Tillæg for budgetterede nettofinansielle poster i 2015"]
[null,"Budgetterede renteudgifter og gebyrer i 2015",8558081,"kr."]
[null,"Budgetterede renteindtægter i 2015",363375,"kr."]
[null,"Tillæg/fradrag i alt",{"$f":"C7-C8","v":8194706},"kr."]
[]
[]
[]
[null,"Korrektion af tillæg for faktiske nettofinansielle poster i 2013"]
[null,"Selskabets faktiske nettofinansielle poster i 2013, jf. reguleringsregnskabet",8194706,"kr."]
[null,"Tillæg for budgetterede nettofinansielle poster i prisloft 2013",8800000,"kr."]
[null,"Korrektion af tillæg for budgetterede nettofinansielle poster i 2013",{"$f":"C14-C15","v":-605294},"kr."]

{"sheet":"12. Over- eller underdækning","index":11,"n_rows":11,"n_cols":4,"rows_kept":11,"cut":false,"hidden":true,"merged":[[3,1,3,3]]}
[{"$f":"'11. Nettofinansielle poster'!A1","v":"Esbjerg Spildevand A/S"}]
[]
[]
[null,"Fane 12. Over- eller underdækning til og med 2010"]
[]
[null,"Tillæg/fradrag for over- eller underdækning til og med 2010"]
[null,"Opgjort over- eller underdækning per 31. december 2010",0,"kr."]
[null,"Heraf beløb indregnet i prislofterne for 2012 - 2014",0,"kr."]
[null,"Endnu ikke indregnet over- eller underdækning",{"$f":"C7-C8","v":0},"kr."]
[null,"Resterende indregningsperiode (fastsat i prisloftet for 2012)",0,"år"]
[null,"Tillæg/fradrag i alt",{"$f":"IF(C7=0,0,C9/C10)","v":0},"kr."]

{"sheet":"13. Kontrol med indtægtsrammen","index":12,"n_rows":38,"n_cols":12,"rows_kept":38,"cut":false,"hidden":false,"merged":[[3,1,3,5],[30,1,30,4],[5,1,5,5]]}
[{"$f":"'12. Over- eller underdækning'!A1","v":"Esbjerg Spildevand A/S"}]
[]
[]
[null,"Fane 13. Korrektion for overholdelse af indtægtsrammen i prisloftet for 2013"]
[]
[null,"Samlet opgørelse vedrørende overholdelse af indtægtsrammen i prisloftet for 2013"]
[null,"Indtægtsramme i prisloftet for 2013",null,null,179641676.72737101,"kr."]
[null,"Ikke anvendt likviditet vedrørende investeringer i 2013"]
[null,"Tillæg for historiske investeringer ",76929436.310974106,"kr."]
[null,"Tillæg for gennemførte investeringer i 2011",2400033,"kr."]
[null,"Korrektion af tillæg for planlagte investeringer i 2011",-1440440,"kr."]
[null,"Tillæg for planlagte investeringer i 2012 og 2013",3144530,"kr."]
[null,"Indtægter fra tilslutningsbidrag",3692885,"kr."]
[null,"Indtægter fra salg af anlægsaktiver",7554,"kr."]
[null,"Erstatninger vedr. anlægsaktiver mv.",0,"kr."]
[null,"Ekstraordinær effektiviseringsgevinst anvendt til investeringer",0,"kr."]
[null,"Udgifter til investeringer",-84045717,"kr."]
[null,"Ikke anvendt likviditet vedr. investeringer i alt",{"$f":"SUM(C9:C17)","v":688281.31097410619},"kr.",{"$f":"IF(C18<0,0,-C18)","v":-688281.31097410619},"kr."]
[null,"Ekstraordinære effektiviseringsgevinster anvendt til takstnedsættelse"]
[null,"Ekstraordinær effektiviseringsgevinst anvendt til takstnedsættelse",{"$f":"E36","v":13666843.565823257},"kr.",{"$f":"-C20","v":-13666843.565823257},"kr."]
[null,"Korrektion af ikke opkrævet tillæg fra 2011 i prisloft 2013"]
[null,"Korrektion af ikke opkrævet tillæg fra 2011 i prisloft 2013",0,"kr.",{"$f":"-C22","v":0},"kr."]
[null,"Indtægter fra primære aktiviteter mv."]
[null,"Indtægter fra kubikmetertakster, faste takster, særbidrag, målergebyrer samt andre takster og gebyrer",158858649,"kr."]
[null,"Andre indtægter i prisloftåret, som selskabet har opnået i forbindelse med eller som følge af selskabets primære aktiviteter",798915,"kr."]
[null,"Indtægter fra primære aktiviteter mv. i alt",{"$f":"SUM(C24:C25)","v":159657564},"kr.",{"$f":"-C26","v":-159657564},"kr."]
[null,"Tillæg/fradrag i prisloftet for 2015 i alt",null,null,{"$f":"E7+E18+E20+E22+E26","v":5628987.8505736589},"kr."]
[]
[]
[]
[null,"Oversigt over ekstraordinære effektiviseringsgevinster"]
[]
[null,null,2012,null,2013,null,2014,null,2015,null,2016]
[null,"Indhentet ekstraordinær effektiviseringsgevinst",13005599,"kr.",13666843.565823257,"kr.",null,"kr.",null,"kr.",null,"kr."]
[null,"Gevinst anvendt til investeringer",860770,"kr.",0,"kr.",null,"kr.",null,"kr.",null,"kr."]
[null,"Gevinst anvendt til takstnedsættelse",12144829,"kr.",13666843.565823257,"kr.",null,"kr.",null,"kr.",null,"kr."]
[null,"Korrektion for  effektiviseringsgevinst der ikke er anvendt inden 4 år",0,"kr.",0,"kr.",null,"kr.",null,"kr.",{"$f":"IF(C38>SUM(E35:I36),C38-SUM(E35:I36),0)*-1","v":0},"kr."]
[null,"Resterende gevinst",{"$f":"C34-C35-C36","v":0},"kr.",{"$f":"C38+E34-E35-E36","v":0},"kr.",{"$f":"E38+G34-G35-G36","v":0},"kr.",{"$f":"G38+I34-I35-I36","v":0},"kr.",{"$f":"K34-K35-K36+K37+I38","v":0},"kr."]